bitfinex/quotes_SOLUSD_20251127
["timestamp","ask_amount","ask_price","bid_price","bid_amount"]
[1764208963990,2.87573868,143.1,143.08,0.7]
[1764208963991,9.86415295,143.1,143.08,0.7]
[1764208964304,9.86415295,143.1,143.09,0.7]
[1764208964694,6.98841427,143.1,143.09,0.7]
[1764208965090,9.86415295,143.1,143.07,0.7]
[1764208966211,2.87573868,143.1,143.07,0.7]
[1764208966506,2.87573868,143.11,143.07,0.7]
[1764208967608,6.98812019,143.1,143.07,0.7]
[1764208967805,9.86385887,143.1,143.07,0.7]
[1764208968015,2.87573868,143.1,143.07,0.7]
[1764208970487,9.86397028,143.1,143.07,0.7]
[1764208971600,6.9882316,143.1,143.07,0.7]
[1764208971801,2.87573868,143.11,143.07,0.7]
[1764208972188,9.8634999,143.11,143.07,0.7]
[1764208973901,6.98860856,143.09,143.07,0.7]
[1764208974893,5.99573868,143.12,143.07,0.7]
[1764208976113,2.87573868,143.11,143.07,0.7]
[1764208976323,9.86370105,143.11,143.07,0.7]
[1764208977019,2.87573868,143.1,143.07,0.7]
[1764208977212,2.87573868,143.09,143.07,0.7]
[1764208977517,2.87573868,143.1,143.07,0.7]
[1764208978097,24.45704209,143.11,143.05,3.12]
[1764208978098,2.87573868,143.08,143.05,0.7]
[1764208978303,6.98958551,143.07,143.05,0.7]
[1764208981328,6.98920809,143.08,143.05,0.7]
[1764208983516,6.98874433,143.09,143.05,3.57573868]
[1764208984031,6.98874433,143.09,143.06,0.7]
[1764208985232,6.98812019,143.1,143.06,3.57573868]
[1764208985731,6.98812019,143.1,143.07,0.72]
[1764208986625,6.98812019,143.1,143.07,3.59573868]
[1764208987026,6.98763189,143.11,143.08,0.72]
[1764208987222,145.11871365,143.13,143.08,3.59573868]
[1764208987618,145.11871365,143.13,143.09,0.72]
[1764208987619,124.77598723,143.13,143.09,0.72]
[1764208988118,108.46712323,143.13,143.09,3.59573868]
[1764208988327,108.46712323,143.13,143.1,0.72]
[1764208989028,108.46712323,143.13,143.1,3.59573868]
[1764208989029,6.98712323,143.13,143.1,3.59573868]
[1764208989228,19.18460268,143.16,143.11,2.87573868]
[1764208989429,2.87573868,143.13,143.09,0.72]
[1764208989731,2.87573868,143.12,143.09,0.72]
[1764208990312,24.44991984,143.15,143.1,2.87573868]
[1764208990514,2.87573868,143.13,143.09,0.72]
[1764208991138,6.98714365,143.12,143.09,0.72]
[1764208991916,2.87573868,143.1,143.07,0.7]
[1764208992222,2.87573868,143.1,143.08,0.7]
[1764208993133,9.86303718,143.12,143.08,0.7]
[1764208993434,6.9872985,143.12,143.08,3.57573868]
[1764208993814,6.9872985,143.12,143.09,0.7]
[1764208994815,9.86239773,143.13,143.09,0.7]
[1764208998161,2.87573868,143.12,143.09,0.7]
[1764208999152,9.86316938,143.12,143.09,0.7]
[1764209000536,2.87573868,143.11,143.09,0.7]
[1764209001250,9.86375968,143.11,143.09,0.7]
[1764209001450,6.988021,143.11,143.09,0.7]
[1764209006954,2.87573868,143.1,143.07,0.7]
[1764209007135,2.87573868,143.08,143.05,3.8]
[1764209007338,9.86520774,143.08,143.05,3.8]
[1764209007552,9.86520774,143.08,143.06,0.7]
[1764209010139,2.87573868,143.08,143.06,0.7]
[1764209010447,2.87573868,143.07,143.05,0.7]
[1764209010657,1.84074467,143.07,143.05,0.7]
[1764209014384,8.83065664,143.07,143.05,0.7]
[1764209016975,8.83065664,143.07,143.02,11.93276496]
[1764209017180,20.5723513,143.09,143.02,11.93276496]
[1764209017181,1.84074467,143.05,143.03,0.7]
[1764209018876,1.84074467,143.04,143.01,0.7]
[1764209019054,6.99154023,143.03,143.01,0.7]
[1764209020158,8.8322849,143.03,143.01,0.7]
[1764209020375,1.84074467,143.02,142.98,0.67]
[1764209020579,1.84074467,142.99,142.94,0.67]
[1764209020756,1.84074467,142.95,142.93,62.65495868]
[1764209020951,1.84074467,142.94,142.93,62.65495868]
[1764209021178,8.83668702,142.94,142.93,62.65495868]
[1764209022460,1.84074467,142.95,142.93,63.32495868]
[1764209023270,6.9945701,142.97,142.94,0.67]
[1764209023471,1.84074467,142.96,142.94,0.67]
[1764209024068,6.9945701,142.97,142.94,0.67]
[1764209024069,1.84074467,142.97,142.94,0.67]
[1764209024381,1.84074467,142.96,142.94,0.67]
[1764209025676,25.40313206,143.0,142.94,3.77]
[1764209025885,18.14960867,143.0,142.95,1.84074467]
[1764209026180,16.308864,143.0,142.95,2.51074467]
[1764209026386,8.83367338,143.01,142.96,2.51074467]
[1764209026679,6.99211365,143.02,142.98,1.84074467]
[1764209026869,8.83285832,143.02,142.97,5.61074467]
[1764209027069,8.83285832,143.02,142.98,0.67]
[1764209027665,1.84074467,143.01,142.98,0.67]
[1764209028074,1.84074467,143.0,142.97,3.1]
[1764209028267,1.84074467,143.0,142.97,3.77]
[1764209028467,1.84074467,142.98,142.94,20.078864]
[1764209028667,8.80994492,143.01,142.94,3.77]
[1764209028668,1.84074467,142.97,142.94,3.77]
[1764209029082,1.84074467,142.97,142.95,0.67]
[1764209029585,8.83543406,142.97,142.95,0.67]
[1764209029786,1.84074467,143.0,142.95,2.51074467]
[1764209030086,6.99300699,143.0,142.96,1.84074467]
[1764209030386,1.84074467,143.02,142.96,2.51074467]
[1764209030681,1.84074467,143.02,142.98,1.84074467]
[1764209030682,6.99216031,143.02,142.98,1.84074467]
[1764209031083,6.99216031,143.02,142.99,0.67]
[1764209031483,8.83290498,143.02,142.99,0.67]
[1764209034178,6.99216031,143.02,142.99,0.67]
[1764209035895,8.83290498,143.02,142.99,0.67]
[1764209038413,1.84074467,143.01,142.99,0.67]
[1764209039714,8.83341893,143.01,142.99,0.67]
[1764209041609,1.84074467,143.01,142.99,0.67]
[1764209041812,24.47138702,143.03,142.99,0.67]
[1764209041993,1.84074467,143.02,142.99,0.67]
[1764209042194,26.31213169,143.03,142.99,0.67]
[1764209042393,6.99154023,143.03,142.99,0.67]
[1764209042594,6.99154023,143.03,142.99,2.51074467]
[1764209042797,6.99154023,143.03,143.0,0.67]
[1764209043309,1.84074467,143.02,142.97,3.1]
[1764209043506,8.8322849,143.03,143.0,0.67]
[1764209044413,1.84074467,143.01,142.98,0.67]
[1764209046212,6.992518,143.01,142.98,0.67]
[1764209048914,26.31113549,143.03,142.98,0.67]
[1764209049215,6.99154023,143.03,142.99,1.84074467]
[1764209049597,6.99154023,143.03,143.0,0.71]
[1764209050914,18.14960867,143.06,143.0,9.54367238]
[1764209051230,1.84074467,143.07,143.02,1.84074467]
[1764209051523,1.84074467,143.07,143.03,0.69]
[1764209051701,1.84074467,143.06,143.03,0.69]
[1764209052208,8.83122165,143.06,143.03,0.69]
[1764209053621,1.84074467,143.04,143.01,3.1]
[1764209053798,1.84074467,143.04,143.02,0.69]
[1764209054612,8.8309829,143.06,143.02,0.69]
[1764209054811,6.99023823,143.06,143.02,7.68201105]
[1764209055118,8.8309829,143.06,143.02,0.69]
[1764209055308,8.8309829,143.06,143.03,0.69]
[1764209056422,135.2619492,143.08,143.03,0.69]
[1764209056423,1.84074467,143.05,143.03,0.69]
[1764209056823,1.84074467,143.06,143.03,0.69]
[1764209057616,1.84074467,143.04,142.97,42.60457587]
[1764209057825,1.84074467,143.04,142.99,1.84074467]
[1764209058218,1.84074467,143.04,143.0,0.69]
[1764209058605,8.83213742,143.04,143.0,0.69]
[1764209059011,6.99139275,143.04,143.0,0.69]
[1764209059632,6.99139275,143.04,143.0,2.53074467]
[1764209059833,6.99139275,143.04,143.01,0.69]
[1764209060209,6.99072813,143.05,143.01,0.69]
[1764209060526,8.8314728,143.05,143.01,0.69]
[1764209061508,1.84074467,143.04,143.01,0.69]
[1764209063011,8.8314728,143.05,143.01,0.69]
[1764209067824,24.46606382,143.06,143.01,0.69]
[1764209068030,1.84074467,143.05,143.01,0.69]
[1764209069615,6.99105145,143.04,143.01,0.69]
[1764209070536,2.87711567,143.05,143.01,0.69]
[1764209071838,27.34317949,143.06,143.01,10.55962182]
[1764209072144,6.98975806,143.07,143.02,2.87711567]
[1764209072350,6.98975806,143.07,143.03,2.87711567]
[1764209072649,6.98975806,143.07,143.04,0.69]
[1764209073722,9.86687373,143.07,143.04,0.69]
[1764209076417,2.87711567,143.06,143.04,0.69]
[1764209078646,9.8673943,143.06,143.04,0.69]
[1764209079629,2.87711567,143.06,143.04,0.69]
[1764209081142,9.86742806,143.06,143.04,0.69]
[1764209081939,6.9895909,143.07,143.04,0.69]
[1764209082136,9.86670657,143.07,143.04,0.69]
[1764209083825,6.99007632,143.06,143.04,0.69]
[1764209086854,9.86670118,143.07,143.04,0.69]
[1764209090654,6.98958551,143.07,143.04,0.69]
[1764209090832,3.1,143.13,143.05,2.87711567]
[1764209091034,2.87711567,143.11,143.05,2.87711567]
[1764209091235,2.87711567,143.11,143.06,0.69]
[1764209091436,2.87711567,143.1,143.06,0.69]
[1764209091752,3.1,143.13,143.06,3.56711567]
[1764209092054,20.56663872,143.13,143.06,3.56711567]
[1764209092356,2.87711567,143.12,143.07,3.56711567]
[1764209092858,9.86474756,143.11,143.08,0.69]
[1764209095961,9.86425932,143.12,143.08,0.69]
[1764209096761,138.35550272,143.13,143.08,0.69]
[1764209096762,26.39567098,143.13,143.09,2.87711567]
[1764209097054,26.17278665,143.13,143.08,10.55617082]
[1764209097257,2.87711567,143.12,143.09,0.69]
[1764209097964,9.86451589,143.12,143.09,0.69]
[1764209101064,6.98740022,143.12,143.09,0.69]
[1764209101562,9.86451589,143.12,143.09,0.69]
[1764209103067,2.87711567,143.1,143.06,0.69]
[1764209103270,2.87711567,143.09,143.06,0.69]
[1764209103466,24.45525935,143.12,143.06,0.69]
[1764209103651,2.87711567,143.1,143.06,0.69]
[1764209104255,2.87711567,143.1,143.02,33.78808575]
[1764209104256,2.87711567,143.07,143.02,0.69]
[1764209104565,2.87711567,143.05,143.02,0.69]
[1764209104870,2.87711567,143.06,143.02,0.69]
[1764209105072,9.86764593,143.06,143.02,0.69]
[1764209105278,16.308864,143.08,143.03,2.87711567]
[1764209105466,6.98920363,143.08,143.04,2.87711567]
[1764209105768,6.98920363,143.08,143.05,2.87711567]
[1764209105969,6.98920363,143.08,143.05,3.56711567]
[1764209106170,6.98920363,143.08,143.06,0.69]
[1764209106748,9.8663193,143.08,143.03,3.1]
[1764209106949,9.8663193,143.08,143.04,0.69]
[1764209107149,2.87711567,143.08,143.04,0.69]
[1764209108869,9.86661678,143.08,143.04,0.69]
[1764209109657,6.98950111,143.08,143.04,0.69]
[1764209109880,9.86661678,143.08,143.04,0.69]
[1764209112061,2.87711567,143.06,143.03,3.1]
[1764209112379,2.87711567,143.06,143.04,0.68]
[1764209112763,17.47274252,143.08,143.04,0.68]
[1764209112970,2.87711567,143.06,143.04,0.68]
[1764209113770,17.47274252,143.08,143.04,0.68]
[1764209114084,9.86739679,143.06,143.04,0.68]
[1764209117977,2.87711567,143.05,143.04,0.68]
[1764209118384,2.87711567,143.06,143.04,0.68]
[1764209120078,9.86746754,143.06,143.04,0.68]
[1764209120589,6.99035187,143.06,143.04,0.68]
[1764209120885,9.86746754,143.06,143.04,0.68]
[1764209122562,2.87711567,143.05,143.04,0.68]
[1764209122885,2.87711567,143.05,143.01,3.1]
[1764209123090,2.87711567,143.05,143.02,0.68]
[1764209123768,9.86746754,143.06,143.02,0.68]
[1764209124464,9.86775087,143.05,143.02,0.68]
[1764209126181,6.9906352,143.05,143.02,0.68]
[1764209126914,2.87711567,143.06,143.02,0.68]
[1764209128299,6.989097,143.08,143.03,2.87711567]
[1764209128604,108.46874535,143.09,143.05,2.87711567]
[1764209128776,23.29713299,143.1,143.06,2.87711567]
[1764209128979,23.29713299,143.1,143.06,3.55711567]
[1764209129277,23.29713299,143.1,143.07,0.68]
[1764209129873,6.98766578,143.11,143.07,3.55711567]
[1764209130074,9.86478145,143.11,143.08,0.68]
[1764209130397,23.2960174,143.12,143.08,0.68]
[1764209130606,15.49067085,143.15,143.09,1.83907223]
[1764209130779,0.1,143.16,143.11,8.82626586]
[1764209131105,0.1,143.16,143.12,1.83907223]
[1764209131276,0.1,143.16,143.12,2.51907223]
[1764209131590,0.1,143.16,143.13,0.68]
[1764209132294,7.08527586,143.16,143.13,0.68]
[1764209132473,1.83907223,143.15,143.11,3.78]
[1764209132679,1.83907223,143.15,143.12,0.68]
[1764209132879,6.98616738,143.14,143.12,0.68]
[1764209135894,8.82483123,143.15,143.12,0.68]
[1764209136805,6.985759,143.15,143.12,0.68]
[1764209137681,8.82483123,143.15,143.12,0.68]
[1764209141602,6.985759,143.15,143.12,0.68]
[1764209142400,8.82483123,143.15,143.12,0.68]
[1764209142591,6.985759,143.15,143.12,0.68]
[1764209144193,8.82483123,143.15,143.12,0.68]
[1764209146417,6.985759,143.15,143.12,0.68]
[1764209146620,8.82483123,143.15,143.12,0.68]
[1764209146788,6.985759,143.15,143.12,0.68]
[1764209148495,8.92440317,143.16,143.12,0.68]
[1764209149897,0.1,143.16,143.12,9.50617284]
[1764209150097,0.1,143.16,143.13,1.83907223]
[1764209150299,0.1,143.16,143.13,2.53907223]
[1764209150519,0.1,143.16,143.14,0.7]
[1764209153300,0.1,143.16,143.14,3.8]
[1764209153500,0.1,143.16,143.15,0.7]
[1764209159721,0.1,143.16,143.15,9.52475158]
[1764209160127,0.1,143.16,143.15,27.77268781]
[1764209161126,0.1,143.16,143.15,25.93361558]
[1764209161905,0.1,143.16,143.15,27.77268781]
[1764209162714,0.1,143.2,143.15,45.2368862]
[1764209163041,0.1,143.2,143.17,1.83907223]
[1764209163236,0.1,143.2,143.17,4.93907223]
[1764209163534,0.1,143.2,143.18,0.7]
[1764209164120,1.93907223,143.2,143.17,3.1]
[1764209164344,1.93907223,143.2,143.17,3.8]
[1764209164629,1.93907223,143.2,143.18,0.7]
[1764209165225,0.1,143.2,143.18,0.7]
[1764209167230,0.1,143.2,143.19,1.83907223]
[1764209167429,0.1,143.2,143.18,9.52318192]
[1764209167617,0.1,143.2,143.19,0.7]
[1764209171315,0.1,143.2,143.19,18.33274506]
[1764209177853,0.1,143.21,143.2,8.80994492]
[1764209178054,0.1,143.23,143.22,8.80994492]
[1764209178350,1.93907223,143.23,143.22,3.1]
[1764209180123,8.92084979,143.23,143.22,3.1]
[1764209180326,9.22084979,143.23,143.19,3.75]
[1764209180529,1.83907223,143.22,143.19,3.75]
[1764209181543,1.83907223,143.2,143.15,0.65]
[1764209181744,0.3,143.21,143.16,3.75]
[1764209181745,1.83907223,143.19,143.16,3.75]
[1764209182135,1.83907223,143.19,143.17,0.65]
[1764209184049,1.83907223,143.19,143.16,3.75]
[1764209184238,1.83907223,143.22,143.17,2.48907223]
[1764209184745,7.08188295,143.23,143.18,2.48907223]
[1764209184746,1.93907223,143.23,143.18,2.48907223]
[1764209185045,7.08182594,143.23,143.19,3.1]
[1764209185235,1.83907223,143.22,143.19,3.75]
[1764209186035,9.12154882,143.22,143.19,3.75]
[1764209186246,1.93907223,143.23,143.2,0.65]
[1764209186437,1.83907223,143.22,143.19,3.75]
[1764209187938,1.83907223,143.21,143.19,3.1]
[1764209188543,2.13907223,143.2,143.16,0.65]
[1764209188724,2.13907223,143.2,143.16,3.75]
[1764209188926,6.98276646,143.21,143.17,0.65]
[1764209189131,8.82183869,143.21,143.17,0.65]
[1764209189331,9.12183869,143.21,143.17,0.65]
[1764209189530,1.83907223,143.19,143.16,3.75]
[1764209190934,1.83907223,143.19,143.17,0.65]
[1764209191434,1.83907223,143.2,143.17,0.65]
[1764209191634,17.45659664,143.22,143.17,2.48907223]
[1764209191635,8.82146934,143.22,143.17,2.48907223]
[1764209191829,1.93907223,143.23,143.18,1.83907223]
[1764209192034,1.93907223,143.23,143.18,9.47302312]
[1764209192254,0.1,143.23,143.19,5.58907223]
[1764209192444,0.1,143.23,143.2,0.65]
[1764209192644,0.1,143.23,143.2,3.51927949]
[1764209193036,0.1,143.23,143.21,0.65]
[1764209194943,0.1,143.23,143.21,10.50201287]
[1764209195438,0.1,143.23,143.22,0.65]
[1764209196647,0.1,143.23,143.22,13.60154453]
[1764209196950,0.1,143.23,143.22,22.41148945]
[1764209199057,0.1,143.23,143.22,116.87395608]
[1764209199680,0.1,143.23,143.22,100.56509208]
[1764209200240,0.1,143.23,143.22,97.69581259]
[1764209200662,16.308864,143.34,143.23,34.24048952]
[1764209200840,0.6,143.37,143.32,16.308864]
[1764209201037,2.86927949,143.35,143.32,3.1]
[1764209201250,0.6,143.37,143.32,3.1]
[1764209201449,2.86927949,143.33,143.3,3.81]
[1764209201651,2.86927949,143.34,143.3,3.81]
[1764209201850,0.6,143.35,143.3,3.81]
[1764209202054,2.86927949,143.32,143.3,3.1]
[1764209202250,0.6,143.35,143.31,0.71]
[1764209202456,2.86927949,143.33,143.3,3.81]
[1764209203467,2.86927949,143.35,143.31,0.71]
[1764209203669,2.86927949,143.36,143.31,3.57927949]
[1764209203966,2.86927949,143.35,143.31,0.71]
[1764209204152,7.57544642,143.36,143.3,3.1]
[1764209204359,3.46927949,143.36,143.32,0.71]
[1764209204559,2.86927949,143.34,143.33,3.1]
[1764209205064,2.86927949,143.35,143.33,3.1]
[1764209206156,2.86927949,143.34,143.33,3.1]
[1764209208465,0.6,143.36,143.33,3.1]
[1764209208667,2.86927949,143.34,143.33,3.1]
[1764209212086,2.86927949,143.36,143.33,3.81]
[1764209212254,2.86927949,143.35,143.34,0.71]
[1764209213061,2.86927949,143.36,143.34,0.71]
[1764209213266,2.86927949,143.35,143.34,0.71]
[1764209213676,2.86927949,143.36,143.34,0.71]
[1764209214458,2.86927949,143.35,143.33,3.1]
[1764209214857,0.6,143.37,143.33,3.1]
[1764209214858,2.86927949,143.34,143.33,3.1]
[1764209215062,7.07454363,143.38,143.34,0.71]
[1764209215063,7.67454363,143.38,143.34,0.71]
[1764209215277,2.86927949,143.35,143.33,10.07680567]
[1764209215476,2.86927949,143.35,143.33,10.78680567]
[1764209216174,2.86927949,143.34,143.33,3.1]
[1764209219366,10.44569919,143.34,143.29,16.308864]
[1764209219584,2.86927949,143.3,143.29,3.1]
[1764209220686,3.46927949,143.3,143.29,3.1]
[1764209221072,10.44764655,143.3,143.25,7.69070035]
[1764209221392,2.86927949,143.27,143.25,10.79070035]
[1764209221599,7.57836706,143.3,143.26,0.71]
[1764209221806,2.86927949,143.27,143.26,0.71]
[1764209222899,2.86927949,143.27,143.26,3.81]
[1764209223797,2.86927949,143.28,143.25,3.1]
[1764209223994,2.86927949,143.28,143.25,3.81]
[1764209224194,2.86927949,143.28,143.25,0.71]
[1764209224409,3.46927949,143.28,143.25,3.81]
[1764209224572,2.86927949,143.27,143.25,3.1]
[1764209224772,2.86927949,143.26,143.25,3.1]
[1764209225487,2.86927949,143.26,143.25,3.81]
[1764209225894,2.86927949,143.27,143.25,3.81]
[1764209226274,2.86927949,143.29,143.26,0.71]
[1764209226479,2.86927949,143.3,143.26,0.71]
[1764209226698,2.86927949,143.31,143.26,0.71]
[1764209226877,2.86927949,143.31,143.26,3.57927949]
[1764209227071,109.0574749,143.32,143.27,8.80994492]
[1764209227072,2.86927949,143.32,143.27,8.80994492]
[1764209227285,2.86927949,143.32,143.28,3.81]
[1764209227703,0.1,143.38,143.31,6.97788012]
[1764209227878,2.86927949,143.36,143.31,12.94715961]
[1764209228078,2.86927949,143.36,143.32,0.66]
[1764209228390,10.44430378,143.37,143.32,0.66]
[1764209228588,3.46927949,143.37,143.32,0.66]
[1764209228976,9.94377916,143.38,143.32,3.52927949]
[1764209229180,9.94377916,143.38,143.33,0.66]
[1764209229394,10.54377916,143.38,143.33,0.66]
[1764209229901,3.46927949,143.37,143.33,0.66]
[1764209230196,7.67449967,143.38,143.33,0.66]
[1764209230583,3.46927949,143.37,143.33,0.66]
[1764209230980,2.86927949,143.34,143.31,3.1]
[1764209231300,2.86927949,143.32,143.29,0.72]
[1764209231501,2.86927949,143.32,143.29,3.82]
[1764209232011,10.44627058,143.33,143.29,10.79873406]
[1764209232204,10.44627058,143.33,143.3,0.72]
[1764209232205,2.86927949,143.33,143.3,0.72]
[1764209232508,2.86927949,143.34,143.3,0.72]
[1764209232801,2.86927949,143.36,143.31,2.86927949]
[1764209233110,26.75316261,143.37,143.32,3.82]
[1764209233594,2.86927949,143.37,143.33,0.72]
[1764209233804,10.44461642,143.37,143.33,0.72]
[1764209234099,2.86927949,143.36,143.33,0.72]
[1764209235193,2.86927949,143.36,143.32,10.79725214]
[1764209235396,2.86927949,143.36,143.33,0.72]
[1764209235796,9.84473177,143.36,143.33,0.72]
[1764209235995,2.86927949,143.36,143.33,0.72]
[1764209236583,2.86927949,143.35,143.32,3.1]
[1764209236783,2.86927949,143.35,143.32,3.82]
[1764209237206,2.86927949,143.34,143.32,3.1]
[1764209237393,2.86927949,143.33,143.32,3.1]
[1764209237584,2.86927949,143.33,143.28,7.69899989]
[1764209237789,27.28342286,143.36,143.28,0.72]
[1764209237790,3.46927949,143.32,143.28,0.72]
[1764209237990,2.86927949,143.31,143.28,3.82]
[1764209238396,2.86927949,143.31,143.28,7.69925275]
[1764209238602,2.86927949,143.31,143.28,10.79925275]
[1764209238992,2.86927949,143.33,143.29,0.72]
[1764209239198,2.86927949,143.34,143.29,0.72]
[1764209240216,2.86927949,143.34,143.3,6.97836706]
[1764209240611,2.86927949,143.34,143.31,0.72]
[1764209241304,2.86927949,143.34,143.31,3.82]
[1764209241904,3.1,143.37,143.31,3.1]
[1764209242106,2.86927949,143.35,143.32,0.72]
[1764209242314,2.86927949,143.34,143.32,0.72]
[1764209242904,2.86927949,143.34,143.31,3.1]
[1764209243104,2.86927949,143.34,143.31,3.82]
[1764209243510,2.86927949,143.34,143.32,0.72]
[1764209244013,2.86927949,143.34,143.31,10.79784773]
[1764209245816,2.86927949,143.32,143.28,3.1]
[1764209246013,2.86927949,143.3,143.28,3.1]
[1764209246213,2.86927949,143.31,143.28,3.82]
[1764209246409,2.86927949,143.3,143.28,3.1]
[1764209246919,2.86927949,143.29,143.28,3.1]
[1764209247599,9.84768137,143.3,143.28,3.1]
[1764209248718,0.6,143.31,143.29,0.72]
[1764209248719,2.86927949,143.31,143.29,0.72]
[1764209248902,2.86927949,143.31,143.28,3.1]
[1764209249216,2.86927949,143.31,143.28,3.82]
[1764209251318,2.86927949,143.31,143.28,10.79933852]
[1764209251909,7.57697775,143.33,143.28,10.79933852]
[1764209252219,3.46927949,143.33,143.29,0.72]
[1764209252422,2.86927949,143.32,143.29,0.72]
[1764209252597,2.86927949,143.31,143.28,3.82]
[1764209254119,9.84718136,143.31,143.28,0.72]
[1764209254518,1.83473842,143.31,143.28,0.72]
[1764209255924,9.41219327,143.32,143.28,0.72]
[1764209256127,1.93473842,143.38,143.31,1.83473842]
[1764209256326,0.1,143.38,143.32,3.1]
[1764209256504,1.93473842,143.38,143.33,1.83473842]
[1764209256703,2.53473842,143.38,143.34,0.72]
[1764209257098,8.90927719,143.38,143.33,0.72]
[1764209257407,1.83473842,143.35,143.33,0.72]
[1764209259427,7.57532911,143.37,143.33,0.72]
[1764209259428,1.83473842,143.36,143.33,0.72]
[1764209260127,1.83473842,143.35,143.33,0.72]
[1764209261022,1.83473842,143.35,143.33,7.69685226]
[1764209261234,1.83473842,143.35,143.33,0.72]
[1764209261535,1.83473842,143.34,143.32,3.1]
[1764209261703,1.83473842,143.34,143.32,3.81]
[1764209261901,1.83473842,143.34,143.33,0.71]
[1764209262104,7.57500243,143.37,143.33,0.71]
[1764209262105,1.83473842,143.35,143.33,0.71]
[1764209262324,1.83473842,143.34,143.33,0.71]
[1764209264026,1.83473842,143.34,143.32,3.1]
[1764209264411,1.83473842,143.33,143.32,3.1]
[1764209264916,1.83473842,143.34,143.32,3.81]
[1764209265107,1.83473842,143.34,143.33,0.71]
[1764209266309,0.1,143.38,143.33,0.71]
[1764209266514,1.83473842,143.35,143.33,0.71]
[1764209267841,7.57536926,143.37,143.33,0.71]
[1764209268038,1.83473842,143.35,143.33,0.71]
[1764209270715,1.83473842,143.34,143.32,3.1]
[1764209271132,1.93473842,143.38,143.33,0.71]
[1764209271432,8.9092494,143.38,143.33,0.71]
[1764209271816,1.83473842,143.37,143.33,0.71]
[1764209272542,1.83473842,143.37,143.33,7.6866481]
[1764209272716,1.83473842,143.37,143.34,0.71]
[1764209273832,0.1,143.38,143.35,3.1]
[1764209274434,0.1,143.38,143.36,0.71]
[1764209275826,0.1,143.38,143.36,7.68526816]
[1764209276423,0.1,143.38,143.36,0.71]
[1764209276631,1.93473842,143.38,143.36,0.71]
[1764209276830,1.83473842,143.37,143.36,0.71]
[1764209277028,1.93473842,143.38,143.36,0.71]
[1764209277233,0.1,143.38,143.36,0.71]
[1764209277430,1.93473842,143.38,143.36,0.71]
[1764209277638,1.83473842,143.37,143.36,0.71]
[1764209278438,0.1,143.38,143.36,0.71]
[1764209278640,1.93473842,143.38,143.36,0.71]
[1764209280747,1.93473842,143.38,143.35,3.1]
[1764209280937,0.1,143.38,143.36,0.71]
[1764209281646,1.83473842,143.37,143.35,3.1]
[1764209281839,7.67454186,143.38,143.35,3.1]
[1764209282028,2.43473842,143.37,143.35,3.1]
[1764209284654,0.6,143.37,143.35,3.1]
[1764209284948,2.43473842,143.37,143.35,3.1]
[1764209286127,0.1,143.38,143.35,3.1]
[1764209286332,0.1,143.38,143.36,0.71]
[1764209287050,0.1,143.38,143.35,3.81]
[1764209287354,0.1,143.38,143.36,0.71]
[1764209287943,0.1,143.38,143.35,12.58061261]
[1764209288549,0.1,143.38,143.35,3.77]
[1764209290335,0.1,143.38,143.35,3.1]
[1764209290535,0.1,143.38,143.37,1.83473842]
[1764209290935,0.1,143.38,143.35,20.098864]
[1764209291557,7.67452846,143.38,143.35,3.1]
[1764209291729,7.67452846,143.38,143.35,3.79]
[1764209291933,0.1,143.38,143.35,3.79]
[1764209292729,0.1,143.38,143.36,0.69]
[1764209294050,0.1,143.38,143.36,2.52473842]
[1764209294436,0.1,143.38,143.37,0.69]
[1764209298050,0.1,143.38,143.36,0.69]
[1764209301053,0.1,143.38,143.35,3.1]